[Event "Titled Tuesday Blitz November 30 2021"]
[White "Injac, Teodora"]
[Black "Demchenko, Anton"]
[WhiteFideId "932400"]
[BlackFideId "4160258"]
[WhiteElo "2320"]
[BlackElo "2583"]
[Result "0-1"]
[Round "02"]
[TimeControl "180+1"]
[Date "2021.11.30"]
[WhiteClock "0:00:03"]
[BlackClock "0:00:02"]

1. Nf3 {[%clk 0:02:55]}  Nf6 {[%clk 0:02:59]} 2. g3 {[%clk 0:02:55]}  b5 {[%clk 0:02:59]} 3. Bg2 {[%clk 0:02:51]}  Bb7 {[%clk 0:02:59]} 4. O-O {[%clk 0:02:48]}  e6 {[%clk 0:03:00]} 5. d3 {[%clk 0:02:48]}  c5 {[%clk 0:02:58]} 6. e4 {[%clk 0:02:46]}  d6 {[%clk 0:02:59]} 7. a4 {[%clk 0:02:33]}  b4 {[%clk 0:02:58]} 8. Nbd2 {[%clk 0:02:32]}  Be7 {[%clk 0:02:57]} 9. a5 {[%clk 0:02:29]}  O-O {[%clk 0:02:57]} 10. Nc4 {[%clk 0:02:30]}  Nbd7 {[%clk 0:02:52]} 11. Re1 {[%clk 0:02:21]}  Rc8 {[%clk 0:02:42]} 12. Bf4 {[%clk 0:02:12]}  e5 {[%clk 0:02:42]} 13. Bg5 {[%clk 0:02:11]}  Ne8 {[%clk 0:02:17]} 14. Bd2 {[%clk 0:01:59]}  Nc7 {[%clk 0:02:04]} 15. c3 {[%clk 0:01:57]}  bxc3 {[%clk 0:02:03]} 16. bxc3 {[%clk 0:01:57]}  Ba6 {[%clk 0:01:48]} 17. Qc2 {[%clk 0:01:49]}  Re8 {[%clk 0:01:42]} 18. Bh3 {[%clk 0:01:45]}  Rb8 {[%clk 0:01:42]} 19. Reb1 {[%clk 0:01:44]}  Bb5 {[%clk 0:01:16]} 20. Ne3 {[%clk 0:01:39]}  g6 {[%clk 0:01:14]} 21. c4 {[%clk 0:01:37]}  Bc6 {[%clk 0:01:11]} 22. Nd5 {[%clk 0:01:36]}  Rxb1+ {[%clk 0:01:01]} 23. Rxb1 {[%clk 0:01:36]}  Nf8 {[%clk 0:00:57]} 24. Bc3 {[%clk 0:01:00]}  Nfe6 {[%clk 0:00:55]} 25. Qd2 {[%clk 0:00:57]}  Bf8 {[%clk 0:00:50]} 26. Bg2 {[%clk 0:00:51]}  Bg7 {[%clk 0:00:47]} 27. h4 {[%clk 0:00:51]}  h5 {[%clk 0:00:34]} 28. Qa2 {[%clk 0:00:47]}  Na6 {[%clk 0:00:32]} 29. Qd2 {[%clk 0:00:43]}  Qd7 {[%clk 0:00:30]} 30. Bh3 {[%clk 0:00:42]}  Qd8 {[%clk 0:00:27]} 31. Bg2 {[%clk 0:00:40]}  Kh7 {[%clk 0:00:23]} 32. Bh3 {[%clk 0:00:40]}  Bh6 {[%clk 0:00:22]} 33. Qb2 {[%clk 0:00:36]}  Rf8 {[%clk 0:00:21]} 34. Nxe5 {[%clk 0:00:23]}  dxe5 {[%clk 0:00:17]} 35. Bxe5 {[%clk 0:00:24]}  Bxd5 {[%clk 0:00:16]} 36. cxd5 {[%clk 0:00:23]}  Nd4 {[%clk 0:00:17]} 37. Bxd4 {[%clk 0:00:22]}  cxd4 {[%clk 0:00:17]} 38. Qxd4 {[%clk 0:00:23]}  Qxa5 {[%clk 0:00:09]} 39. Qxa7 {[%clk 0:00:23]}  Qa2 {[%clk 0:00:03]} 40. Rb7 {[%clk 0:00:22]}  Kg8 {[%clk 0:00:03]} 41. Rb6 {[%clk 0:00:15]}  Nb4 {[%clk 0:00:03]} 42. Qxa2 {[%clk 0:00:14]}  Nxa2 {[%clk 0:00:04]} 43. e5 {[%clk 0:00:12]}  Rd8 {[%clk 0:00:03]} 44. d6 {[%clk 0:00:13]}  Nc3 {[%clk 0:00:03]} 45. Rc6 {[%clk 0:00:13]}  Ne2+ {[%clk 0:00:03]} 46. Kg2 {[%clk 0:00:12]}  Bg7 {[%clk 0:00:03]} 47. Rc7 {[%clk 0:00:07]}  Bxe5 {[%clk 0:00:02]} 48. Re7 {[%clk 0:00:07]}  Bxd6 {[%clk 0:00:01]} 49. Rxe2 {[%clk 0:00:06]}  Bf8 {[%clk 0:00:02]} 50. Re3 {[%clk 0:00:05]}  Bc5 {[%clk 0:00:02]} 51. Rf3 {[%clk 0:00:06]}  Kg7 {[%clk 0:00:02]} 52. g4 {[%clk 0:00:03]}  hxg4 {[%clk 0:00:01]} 53. Bxg4 {[%clk 0:00:04]}  Rd4 {[%clk 0:00:02]} 54. Rg3 {[%clk 0:00:03]}  Bd6 {[%clk 0:00:02]} 0-1


[Site "https://www.chess.com"]

[Event "Titled Tuesday Blitz November 30 2021"]
[White "Manukyan, Artyom"]
[Black "Belous, Vladimir"]
[WhiteFideId "13305786"]
[BlackFideId "4174003"]
[WhiteElo "2034"]
[BlackElo "2510"]
[Result "1-0"]
[Round "02"]
[TimeControl "180+1"]
[Date "2021.11.30"]
[WhiteClock "0:00:05"]
[BlackClock "0:00:09"]

1. e4 {[%clk 0:03:00]}  c5 {[%clk 0:02:54]} 2. Nc3 {[%clk 0:03:00]}  Nc6 {[%clk 0:02:54]} 3. Bb5 {[%clk 0:03:00]}  Nd4 {[%clk 0:02:53]} 4. Nf3 {[%clk 0:03:00]}  g6 {[%clk 0:02:53]} 5. O-O {[%clk 0:02:54]}  Bg7 {[%clk 0:02:53]} 6. Nxd4 {[%clk 0:02:52]}  cxd4 {[%clk 0:02:52]} 7. Ne2 {[%clk 0:02:52]}  Nf6 {[%clk 0:02:51]} 8. d3 {[%clk 0:02:48]}  O-O {[%clk 0:02:52]} 9. Bc4 {[%clk 0:02:41]}  d5 {[%clk 0:02:50]} 10. exd5 {[%clk 0:02:41]}  Nxd5 {[%clk 0:02:51]} 11. Nf4 {[%clk 0:02:40]}  Nb6 {[%clk 0:02:48]} 12. Bb3 {[%clk 0:02:40]}  e5 {[%clk 0:02:48]} 13. Ne2 {[%clk 0:02:38]}  Qe7 {[%clk 0:02:34]} 14. f4 {[%clk 0:02:35]}  e4 {[%clk 0:02:32]} 15. dxe4 {[%clk 0:02:32]}  Qxe4 {[%clk 0:02:33]} 16. Ng3 {[%clk 0:02:32]}  Qc6 {[%clk 0:02:29]} 17. f5 {[%clk 0:02:32]}  Bd7 {[%clk 0:02:23]} 18. Bg5 {[%clk 0:02:26]}  h6 {[%clk 0:02:04]} 19. Be7 {[%clk 0:02:07]}  Rfe8 {[%clk 0:02:03]} 20. f6 {[%clk 0:01:56]}  Be6 {[%clk 0:02:02]} 21. Qd2 {[%clk 0:01:42]}  Bxb3 {[%clk 0:01:56]} 22. axb3 {[%clk 0:01:43]}  Rxe7 {[%clk 0:01:44]} 23. fxe7 {[%clk 0:01:36]}  Nd5 {[%clk 0:01:44]} 24. Qa5 {[%clk 0:01:22]}  Re8 {[%clk 0:01:39]} 25. Qa4 {[%clk 0:01:15]}  Rxe7 {[%clk 0:01:35]} 26. Qxc6 {[%clk 0:01:15]}  bxc6 {[%clk 0:01:36]} 27. Rfe1 {[%clk 0:01:14]}  Ne3 {[%clk 0:01:33]} 28. Rac1 {[%clk 0:01:05]}  f5 {[%clk 0:01:31]} 29. Nf1 {[%clk 0:01:05]}  f4 {[%clk 0:01:30]} 30. Nxe3 {[%clk 0:01:05]}  fxe3 {[%clk 0:01:28]} 31. Ra1 {[%clk 0:01:00]}  c5 {[%clk 0:01:23]} 32. Ra6 {[%clk 0:00:59]}  Kh7 {[%clk 0:01:21]} 33. Rc6 {[%clk 0:00:59]}  Re5 {[%clk 0:01:05]} 34. Rc7 {[%clk 0:00:58]}  a5 {[%clk 0:01:01]} 35. Rf1 {[%clk 0:00:57]}  g5 {[%clk 0:00:53]} 36. g4 {[%clk 0:00:49]}  h5 {[%clk 0:00:51]} 37. h3 {[%clk 0:00:48]}  hxg4 {[%clk 0:00:49]} 38. hxg4 {[%clk 0:00:49]}  Re4 {[%clk 0:00:49]} 39. Kg2 {[%clk 0:00:28]}  Rxg4+ {[%clk 0:00:48]} 40. Kf3 {[%clk 0:00:28]}  Rf4+ {[%clk 0:00:44]} 41. Ke2 {[%clk 0:00:28]}  Kg6 {[%clk 0:00:34]} 42. Rxf4 {[%clk 0:00:26]}  gxf4 {[%clk 0:00:33]} 43. Rxc5 {[%clk 0:00:26]}  Kf6 {[%clk 0:00:24]} 44. Rxa5 {[%clk 0:00:26]}  Ke6 {[%clk 0:00:25]} 45. Kf3 {[%clk 0:00:22]}  Be5 {[%clk 0:00:25]} 46. b4 {[%clk 0:00:22]}  Bd6 {[%clk 0:00:24]} 47. b5 {[%clk 0:00:15]}  Kd5 {[%clk 0:00:25]} 48. Ra6 {[%clk 0:00:12]}  Bc5 {[%clk 0:00:17]} 49. Rc6 {[%clk 0:00:11]}  Bd6 {[%clk 0:00:16]} 50. b3 {[%clk 0:00:11]}  Bc5 {[%clk 0:00:10]} 51. Rc8 {[%clk 0:00:10]}  Bb6 {[%clk 0:00:08]} 52. Rc6 {[%clk 0:00:10]}  Bc5 {[%clk 0:00:08]} 53. Rf6 {[%clk 0:00:09]}  Bd6 {[%clk 0:00:08]} 54. b6 {[%clk 0:00:10]}  Be5 {[%clk 0:00:09]} 55. Rf5 {[%clk 0:00:05]} 1-0


[Site "https://www.chess.com"]

[Event "Titled Tuesday Blitz November 30 2021"]
[White "Nakamura, Hikaru"]
[Black "Arabidze, Meri"]
[WhiteFideId "2016192"]
[BlackFideId "13604040"]
[WhiteElo "2884"]
[BlackElo "2432"]
[Result "1-0"]
[Round "02"]
[TimeControl "180+1"]
[Date "2021.11.30"]
[WhiteClock "0:01:30"]
[BlackClock "0:00:02"]

1. Nf3 {[%clk 0:03:00]}  Nf6 {[%clk 0:02:59]} 2. b3 {[%clk 0:03:00]}  d5 {[%clk 0:02:57]} 3. e3 {[%clk 0:03:00]}  g6 {[%clk 0:02:56]} 4. Bb2 {[%clk 0:03:00]}  Bg7 {[%clk 0:02:56]} 5. c4 {[%clk 0:03:00]}  c6 {[%clk 0:02:56]} 6. d4 {[%clk 0:03:01]}  O-O {[%clk 0:02:56]} 7. Bd3 {[%clk 0:03:01]}  Bg4 {[%clk 0:02:55]} 8. Nbd2 {[%clk 0:03:01]}  a5 {[%clk 0:02:54]} 9. h3 {[%clk 0:03:00]}  Bxf3 {[%clk 0:02:54]} 10. Nxf3 {[%clk 0:03:01]}  a4 {[%clk 0:02:52]} 11. O-O {[%clk 0:03:01]}  e6 {[%clk 0:02:47]} 12. Qc2 {[%clk 0:02:58]}  Na6 {[%clk 0:02:45]} 13. Bc3 {[%clk 0:02:58]}  Rc8 {[%clk 0:02:35]} 14. c5 {[%clk 0:02:58]}  axb3 {[%clk 0:02:24]} 15. Qxb3 {[%clk 0:02:55]}  Rb8 {[%clk 0:02:18]} 16. Rab1 {[%clk 0:02:49]}  Ne4 {[%clk 0:02:15]} 17. Be1 {[%clk 0:02:39]}  Naxc5 {[%clk 0:01:54]} 18. dxc5 {[%clk 0:02:39]}  Nxc5 {[%clk 0:01:55]} 19. Qc2 {[%clk 0:02:39]}  Nxd3 {[%clk 0:01:55]} 20. Qxd3 {[%clk 0:02:39]}  e5 {[%clk 0:01:52]} 21. Qc2 {[%clk 0:02:37]}  Qd7 {[%clk 0:01:42]} 22. Bb4 {[%clk 0:02:37]}  Rfc8 {[%clk 0:01:40]} 23. Bc5 {[%clk 0:02:37]}  Qe6 {[%clk 0:01:22]} 24. a4 {[%clk 0:02:32]}  Bf8 {[%clk 0:01:17]} 25. a5 {[%clk 0:02:29]}  Bd6 {[%clk 0:01:09]} 26. Ba7 {[%clk 0:02:24]}  Ra8 {[%clk 0:01:06]} 27. Rxb7 {[%clk 0:02:24]}  c5 {[%clk 0:01:05]} 28. Ng5 {[%clk 0:02:22]}  Qf6 {[%clk 0:00:57]} 29. Nxf7 {[%clk 0:02:21]}  Bf8 {[%clk 0:00:55]} 30. e4 {[%clk 0:02:20]}  Qa6 {[%clk 0:00:48]} 31. Rb6 {[%clk 0:02:10]}  Qxa7 {[%clk 0:00:46]} 32. Nxe5 {[%clk 0:02:10]}  Qxa5 {[%clk 0:00:38]} 33. Qb1 {[%clk 0:02:10]}  c4 {[%clk 0:00:24]} 34. exd5 {[%clk 0:02:08]}  c3 {[%clk 0:00:21]} 35. Qb3 {[%clk 0:01:44]}  Qa3 {[%clk 0:00:18]} 36. Nc6 {[%clk 0:01:41]}  Qxb3 {[%clk 0:00:17]} 37. Rxb3 {[%clk 0:01:42]}  Ra3 {[%clk 0:00:14]} 38. Rb7 {[%clk 0:01:40]}  c2 {[%clk 0:00:13]} 39. Rb2 {[%clk 0:01:30]}  Rc3 {[%clk 0:00:12]} 40. Rc1 {[%clk 0:01:30]}  Rc5 {[%clk 0:00:05]} 41. Rbxc2 {[%clk 0:01:29]}  Rxd5 {[%clk 0:00:04]} 42. Ne7+ {[%clk 0:01:29]}  Bxe7 {[%clk 0:00:04]} 43. Rxc8+ {[%clk 0:01:30]}  Kf7 {[%clk 0:00:05]} 44. g3 {[%clk 0:01:30]}  h5 {[%clk 0:00:04]} 45. h4 {[%clk 0:01:30]}  Rd6 {[%clk 0:00:04]} 46. R1c7 {[%clk 0:01:30]}  Re6 {[%clk 0:00:05]} 47. Kg2 {[%clk 0:01:30]}  Kf6 {[%clk 0:00:04]} 48. Rb7 {[%clk 0:01:30]}  Kf7 {[%clk 0:00:04]} 49. Rcc7 {[%clk 0:01:30]}  Kf6 {[%clk 0:00:04]} 50. Kf3 {[%clk 0:01:30]}  Kf7 {[%clk 0:00:03]} 51. Kf4 {[%clk 0:01:31]}  Kf6 {[%clk 0:00:03]} 52. Rxe7 {[%clk 0:01:29]}  Rxe7 {[%clk 0:00:02]} 53. Rxe7 {[%clk 0:01:30]}  Kxe7 {[%clk 0:00:03]} 54. Ke5 {[%clk 0:01:30]}  Kf7 {[%clk 0:00:02]} 55. f4 {[%clk 0:01:30]} 1-0


[Site "https://www.chess.com"]

[Event "Titled Tuesday Blitz November 30 2021"]
[White "Perez Ponsa, Federico"]
[Black "Ambartsumova, Karina"]
[WhiteFideId "117927"]
[BlackFideId "4166299"]
[WhiteElo "2672"]
[BlackElo "2262"]
[Result "1-0"]
[Round "02"]
[TimeControl "180+1"]
[Date "2021.11.30"]
[WhiteClock "0:00:38"]
[BlackClock "0:00:08"]

1. e4 {[%clk 0:03:00]}  e5 {[%clk 0:02:58]} 2. Nf3 {[%clk 0:03:00]}  Nc6 {[%clk 0:02:58]} 3. Bc4 {[%clk 0:02:59]}  Bc5 {[%clk 0:02:53]} 4. O-O {[%clk 0:02:57]}  Nf6 {[%clk 0:02:53]} 5. d3 {[%clk 0:02:57]}  O-O {[%clk 0:02:49]} 6. Nbd2 {[%clk 0:02:58]}  d5 {[%clk 0:02:41]} 7. exd5 {[%clk 0:02:59]}  Nxd5 {[%clk 0:02:41]} 8. Ne4 {[%clk 0:02:59]}  Bb6 {[%clk 0:02:36]} 9. Re1 {[%clk 0:02:56]}  f6 {[%clk 0:02:14]} 10. c3 {[%clk 0:02:52]}  Kh8 {[%clk 0:02:11]} 11. a4 {[%clk 0:02:51]}  a5 {[%clk 0:02:09]} 12. Qb3 {[%clk 0:02:38]}  Nde7 {[%clk 0:02:01]} 13. Be3 {[%clk 0:02:27]}  Bxe3 {[%clk 0:01:58]} 14. Rxe3 {[%clk 0:02:27]}  b6 {[%clk 0:01:56]} 15. Rae1 {[%clk 0:02:26]}  Bg4 {[%clk 0:01:46]} 16. Ng3 {[%clk 0:02:20]}  Nf5 {[%clk 0:01:36]} 17. Nxf5 {[%clk 0:02:12]}  Bxf5 {[%clk 0:01:37]} 18. Nh4 {[%clk 0:02:11]}  Ne7 {[%clk 0:01:19]} 19. Nxf5 {[%clk 0:01:58]}  Nxf5 {[%clk 0:01:18]} 20. Rf3 {[%clk 0:01:58]}  Ne7 {[%clk 0:01:08]} 21. Re4 {[%clk 0:01:57]}  Qd6 {[%clk 0:00:59]} 22. h3 {[%clk 0:01:52]}  f5 {[%clk 0:00:54]} 23. Re1 {[%clk 0:01:50]}  Ng6 {[%clk 0:00:50]} 24. g3 {[%clk 0:01:48]}  e4 {[%clk 0:00:42]} 25. dxe4 {[%clk 0:01:44]}  Ne5 {[%clk 0:00:42]} 26. Rfe3 {[%clk 0:01:31]}  fxe4 {[%clk 0:00:41]} 27. Be2 {[%clk 0:01:27]}  Nf3+ {[%clk 0:00:38]} 28. Bxf3 {[%clk 0:01:26]}  exf3 {[%clk 0:00:39]} 29. Qd1 {[%clk 0:01:19]}  Qf6 {[%clk 0:00:29]} 30. Re6 {[%clk 0:01:16]}  Qf5 {[%clk 0:00:26]} 31. Kh2 {[%clk 0:01:17]}  h6 {[%clk 0:00:21]} 32. Qd4 {[%clk 0:01:15]}  Rad8 {[%clk 0:00:19]} 33. Rxh6+ {[%clk 0:01:13]}  Kg8 {[%clk 0:00:17]} 34. Qc4+ {[%clk 0:01:14]}  Rf7 {[%clk 0:00:17]} 35. Rhe6 {[%clk 0:01:11]}  Rd2 {[%clk 0:00:16]} 36. Re8+ {[%clk 0:00:59]}  Kh7 {[%clk 0:00:16]} 37. Qh4+ {[%clk 0:00:58]}  Kg6 {[%clk 0:00:16]} 38. Kg1 {[%clk 0:00:52]}  Rxf2 {[%clk 0:00:13]} 39. R8e6+ {[%clk 0:00:39]}  Rf6 {[%clk 0:00:13]} 40. Rxf6+ {[%clk 0:00:39]}  gxf6 {[%clk 0:00:13]} 41. Kxf2 {[%clk 0:00:39]}  Qc2+ {[%clk 0:00:10]} 42. Kxf3 {[%clk 0:00:39]}  Qd3+ {[%clk 0:00:10]} 43. Kf2 {[%clk 0:00:39]}  Qc2+ {[%clk 0:00:08]} 44. Re2 {[%clk 0:00:39]}  Qf5+ {[%clk 0:00:08]} 45. Kg2 {[%clk 0:00:38]}  Qd5+ {[%clk 0:00:08]} 46. Qe4+ {[%clk 0:00:38]} 1-0


[Site "https://www.chess.com"]

[Event "Titled Tuesday Blitz November 30 2021"]
[White "Pranav, V"]
[Black "Shahade, Gregory"]
[WhiteFideId "25060783"]
[BlackFideId "2009064"]
[WhiteElo "2351"]
[BlackElo "2621"]
[Result "0-1"]
[Round "02"]
[TimeControl "180+1"]
[Date "2021.11.30"]
[WhiteClock "0:00:08"]
[BlackClock "0:00:08"]

1. e4 {[%clk 0:03:00]}  e5 {[%clk 0:02:58]} 2. Nf3 {[%clk 0:03:01]}  Nc6 {[%clk 0:02:58]} 3. Bb5 {[%clk 0:03:01]}  a6 {[%clk 0:02:58]} 4. Ba4 {[%clk 0:03:00]}  Nf6 {[%clk 0:02:58]} 5. O-O {[%clk 0:03:00]}  Be7 {[%clk 0:02:58]} 6. d3 {[%clk 0:03:00]}  b5 {[%clk 0:02:57]} 7. Bb3 {[%clk 0:02:59]}  d6 {[%clk 0:02:57]} 8. a3 {[%clk 0:02:57]}  O-O {[%clk 0:02:46]} 9. Nc3 {[%clk 0:02:56]}  Na5 {[%clk 0:02:46]} 10. Ba2 {[%clk 0:02:55]}  Be6 {[%clk 0:02:46]} 11. Bxe6 {[%clk 0:02:51]}  fxe6 {[%clk 0:02:46]} 12. b4 {[%clk 0:02:51]}  Nc6 {[%clk 0:02:44]} 13. Rb1 {[%clk 0:02:52]}  Nd4 {[%clk 0:02:32]} 14. Nxd4 {[%clk 0:02:48]}  exd4 {[%clk 0:02:33]} 15. Ne2 {[%clk 0:02:48]}  c5 {[%clk 0:02:33]} 16. c3 {[%clk 0:02:40]}  dxc3 {[%clk 0:02:29]} 17. Nxc3 {[%clk 0:02:41]}  cxb4 {[%clk 0:02:23]} 18. axb4 {[%clk 0:02:42]}  Qd7 {[%clk 0:02:21]} 19. h3 {[%clk 0:02:31]}  Rac8 {[%clk 0:02:14]} 20. Bd2 {[%clk 0:02:29]}  Rc6 {[%clk 0:02:13]} 21. Ne2 {[%clk 0:02:26]}  Rc7 {[%clk 0:01:52]} 22. Qb3 {[%clk 0:02:23]}  d5 {[%clk 0:01:42]} 23. e5 {[%clk 0:02:23]}  Ne8 {[%clk 0:01:37]} 24. Nd4 {[%clk 0:02:21]}  g6 {[%clk 0:01:23]} 25. Bh6 {[%clk 0:02:19]}  Ng7 {[%clk 0:01:19]} 26. Ra1 {[%clk 0:02:19]}  Ra8 {[%clk 0:01:16]} 27. Rfc1 {[%clk 0:02:14]}  Rxc1+ {[%clk 0:01:13]} 28. Rxc1 {[%clk 0:02:15]}  Nf5 {[%clk 0:01:13]} 29. Nxf5 {[%clk 0:02:12]}  gxf5 {[%clk 0:01:14]} 30. d4 {[%clk 0:01:55]}  Kh8 {[%clk 0:01:04]} 31. Rc3 {[%clk 0:01:53]}  Rg8 {[%clk 0:00:51]} 32. g3 {[%clk 0:01:35]}  Qa7 {[%clk 0:00:43]} 33. Rc6 {[%clk 0:01:14]}  Qxd4 {[%clk 0:00:39]} 34. Rxe6 {[%clk 0:01:14]}  Bxb4 {[%clk 0:00:39]} 35. Be3 {[%clk 0:01:02]}  Qe4 {[%clk 0:00:33]} 36. Rf6 {[%clk 0:00:54]}  a5 {[%clk 0:00:27]} 37. e6 {[%clk 0:00:46]}  d4 {[%clk 0:00:24]} 38. Bh6 {[%clk 0:00:39]}  d3 {[%clk 0:00:21]} 39. e7 {[%clk 0:00:33]}  Rxg3+ {[%clk 0:00:09]} 40. fxg3 {[%clk 0:00:15]}  Bc5+ {[%clk 0:00:09]} 41. Kh2 {[%clk 0:00:07]}  Qe2+ {[%clk 0:00:08]} 42. Kh1 {[%clk 0:00:08]}  Qf1+ {[%clk 0:00:08]} 43. Kh2 {[%clk 0:00:08]}  Qg1# {[%clk 0:00:08]} 0-1


[Site "https://www.chess.com"]

[Event "Titled Tuesday Blitz November 30 2021"]
[White "Prestia, Paris"]
[Black "Martinez Alcantara, Jose Eduardo"]
[WhiteFideId "30925959"]
[BlackFideId "3805662"]
[WhiteElo "2623"]
[BlackElo "2690"]
[Result "0-1"]
[Round "02"]
[TimeControl "180+1"]
[Date "2021.11.30"]
[WhiteClock "0:01:04"]
[BlackClock "0:01:08"]

1. d4 {[%clk 0:03:00]}  d5 {[%clk 0:02:59]} 2. c4 {[%clk 0:03:01]}  dxc4 {[%clk 0:03:00]} 3. e4 {[%clk 0:03:01]}  e5 {[%clk 0:02:58]} 4. Nf3 {[%clk 0:03:01]}  exd4 {[%clk 0:02:59]} 5. Bxc4 {[%clk 0:03:02]}  Nc6 {[%clk 0:02:59]} 6. O-O {[%clk 0:03:02]}  Be6 {[%clk 0:02:58]} 7. Bxe6 {[%clk 0:03:01]}  fxe6 {[%clk 0:02:59]} 8. e5 {[%clk 0:03:00]}  Qd5 {[%clk 0:02:38]} 9. Re1 {[%clk 0:02:46]}  O-O-O {[%clk 0:02:25]} 10. a3 {[%clk 0:02:46]}  Nh6 {[%clk 0:02:18]} 11. Bxh6 {[%clk 0:02:34]}  gxh6 {[%clk 0:02:18]} 12. b4 {[%clk 0:02:35]}  Rg8 {[%clk 0:02:17]} 13. Nbd2 {[%clk 0:02:35]}  Be7 {[%clk 0:02:15]} 14. Qa4 {[%clk 0:02:21]}  Rdf8 {[%clk 0:01:58]} 15. Kh1 {[%clk 0:02:07]}  a6 {[%clk 0:01:57]} 16. Rab1 {[%clk 0:02:05]}  Na7 {[%clk 0:01:30]} 17. Qb3 {[%clk 0:01:53]}  Rd8 {[%clk 0:01:26]} 18. Qd3 {[%clk 0:01:45]}  Nb5 {[%clk 0:01:24]} 19. a4 {[%clk 0:01:36]}  Nc3 {[%clk 0:01:22]} 20. Ra1 {[%clk 0:01:34]}  Bg5 {[%clk 0:01:18]} 21. b5 {[%clk 0:01:27]}  Bxd2 {[%clk 0:01:16]} 22. Qxd2 {[%clk 0:01:27]}  Rxg2 {[%clk 0:01:11]} 23. Kxg2 {[%clk 0:01:04]}  Rg8+ {[%clk 0:01:11]} 24. Kf1 {[%clk 0:01:04]}  Qxf3 {[%clk 0:01:08]} 0-1


[Site "https://www.chess.com"]

[Event "Titled Tuesday Blitz November 30 2021"]
[White "Punin, Andrii"]
[Black "Sviridov, Valery"]
[WhiteFideId "14112639"]
[BlackFideId "4120680"]
[WhiteElo "2357"]
[BlackElo "2454"]
[Result "0-1"]
[Round "02"]
[TimeControl "180+1"]
[Date "2021.11.30"]
[WhiteClock "0:00:03"]
[BlackClock "0:01:15"]

1. e4 {[%clk 0:03:00]}  Nf6 {[%clk 0:02:56]} 2. e5 {[%clk 0:03:00]}  Nd5 {[%clk 0:02:57]} 3. d4 {[%clk 0:03:00]}  d6 {[%clk 0:02:57]} 4. Nf3 {[%clk 0:03:00]}  dxe5 {[%clk 0:02:58]} 5. Nxe5 {[%clk 0:03:00]}  c6 {[%clk 0:02:58]} 6. Be2 {[%clk 0:02:56]}  Bf5 {[%clk 0:02:56]} 7. O-O {[%clk 0:02:56]}  Nd7 {[%clk 0:02:57]} 8. Nf3 {[%clk 0:02:56]}  e6 {[%clk 0:02:57]} 9. c4 {[%clk 0:02:45]}  N5b6 {[%clk 0:02:56]} 10. Nc3 {[%clk 0:02:41]}  Be7 {[%clk 0:02:57]} 11. Bf4 {[%clk 0:02:38]}  O-O {[%clk 0:02:57]} 12. h3 {[%clk 0:02:34]}  h6 {[%clk 0:02:54]} 13. Bd3 {[%clk 0:02:34]}  Bxd3 {[%clk 0:02:53]} 14. Qxd3 {[%clk 0:02:35]}  Nf6 {[%clk 0:02:53]} 15. Rad1 {[%clk 0:02:33]}  Re8 {[%clk 0:02:51]} 16. Rfe1 {[%clk 0:02:32]}  Nbd7 {[%clk 0:02:50]} 17. Ne5 {[%clk 0:02:31]}  Qa5 {[%clk 0:02:46]} 18. Nxd7 {[%clk 0:02:14]}  Nxd7 {[%clk 0:02:46]} 19. d5 {[%clk 0:02:14]}  cxd5 {[%clk 0:02:45]} 20. cxd5 {[%clk 0:02:13]}  Nc5 {[%clk 0:02:11]} 21. Qb5 {[%clk 0:02:08]}  Qxb5 {[%clk 0:02:06]} 22. Nxb5 {[%clk 0:02:09]}  Rad8 {[%clk 0:02:00]} 23. Nc7 {[%clk 0:02:05]}  Rf8 {[%clk 0:01:59]} 24. Bg3 {[%clk 0:01:43]}  Bf6 {[%clk 0:01:53]} 25. dxe6 {[%clk 0:01:41]}  Nxe6 {[%clk 0:01:49]} 26. Nxe6 {[%clk 0:01:39]}  fxe6 {[%clk 0:01:50]} 27. b3 {[%clk 0:01:36]}  Kf7 {[%clk 0:01:47]} 28. Kf1 {[%clk 0:01:34]}  h5 {[%clk 0:01:46]} 29. Ke2 {[%clk 0:01:30]}  Bd4 {[%clk 0:01:35]} 30. Bf4 {[%clk 0:01:25]}  Rd5 {[%clk 0:01:34]} 31. Be3 {[%clk 0:01:24]}  Bxe3 {[%clk 0:01:34]} 32. Rxd5 {[%clk 0:01:17]}  exd5 {[%clk 0:01:34]} 33. Kxe3 {[%clk 0:01:09]}  Re8+ {[%clk 0:01:22]} 34. Kd2 {[%clk 0:01:09]}  Rxe1 {[%clk 0:01:23]} 35. Kxe1 {[%clk 0:01:10]}  g5 {[%clk 0:01:23]} 36. Kd2 {[%clk 0:01:09]}  Ke6 {[%clk 0:01:24]} 37. Ke3 {[%clk 0:01:03]}  Ke5 {[%clk 0:01:24]} 38. Kd3 {[%clk 0:00:39]}  d4 {[%clk 0:01:17]} 39. a3 {[%clk 0:00:35]}  Kd5 {[%clk 0:01:14]} 40. g3 {[%clk 0:00:22]}  g4 {[%clk 0:01:13]} 41. hxg4 {[%clk 0:00:18]}  hxg4 {[%clk 0:01:14]} 42. b4 {[%clk 0:00:04]}  b5 {[%clk 0:01:13]} 43. Kd2 {[%clk 0:00:03]}  Ke4 {[%clk 0:01:14]} 44. Ke2 {[%clk 0:00:03]}  d3+ {[%clk 0:01:15]} 0-1


[Site "https://www.chess.com"]

[Event "Titled Tuesday Blitz November 30 2021"]
[White "Radovic, Janko"]
[Black "Gokerkan, Cem Kaan"]
[WhiteFideId "911518"]
[BlackFideId "6336760"]
[WhiteElo "2293"]
[BlackElo "2382"]
[Result "1-0"]
[Round "02"]
[TimeControl "180+1"]
[Date "2021.11.30"]
[WhiteClock "0:01:04"]
[BlackClock "0:00:39"]

1. Nf3 {[%clk 0:03:00]}  Nf6 {[%clk 0:02:59]} 2. c4 {[%clk 0:03:00]}  g6 {[%clk 0:02:57]} 3. g3 {[%clk 0:03:00]}  Bg7 {[%clk 0:02:58]} 4. Bg2 {[%clk 0:02:59]}  O-O {[%clk 0:02:57]} 5. O-O {[%clk 0:02:59]}  d6 {[%clk 0:02:57]} 6. Nc3 {[%clk 0:02:59]}  e5 {[%clk 0:02:56]} 7. d3 {[%clk 0:03:00]}  Re8 {[%clk 0:02:56]} 8. Rb1 {[%clk 0:02:58]}  a5 {[%clk 0:02:55]} 9. a3 {[%clk 0:02:58]}  e4 {[%clk 0:02:47]} 10. dxe4 {[%clk 0:02:49]}  Nxe4 {[%clk 0:02:48]} 11. Nxe4 {[%clk 0:02:42]}  Rxe4 {[%clk 0:02:49]} 12. b3 {[%clk 0:02:40]}  Bf5 {[%clk 0:02:46]} 13. Bb2 {[%clk 0:02:22]}  Bxb2 {[%clk 0:02:10]} 14. Rxb2 {[%clk 0:02:21]}  Nc6 {[%clk 0:02:10]} 15. Nh4 {[%clk 0:02:14]}  Rxh4 {[%clk 0:01:57]} 16. gxh4 {[%clk 0:02:13]}  Qxh4 {[%clk 0:01:58]} 17. Qd5 {[%clk 0:01:55]}  Re8 {[%clk 0:01:53]} 18. e3 {[%clk 0:01:44]}  Be4 {[%clk 0:01:47]} 19. Bxe4 {[%clk 0:01:38]}  Rxe4 {[%clk 0:01:48]} 20. Kh1 {[%clk 0:01:31]}  Ne5 {[%clk 0:01:47]} 21. f4 {[%clk 0:01:28]}  Qh3 {[%clk 0:01:25]} 22. Rbf2 {[%clk 0:01:16]}  Ng4 {[%clk 0:00:41]} 23. Qxe4 {[%clk 0:01:12]}  Nxh2 {[%clk 0:00:39]} 24. Qg2 {[%clk 0:01:04]} 1-0


[Site "https://www.chess.com"]